bitfinex/quotes_BTCUSD_20250118
["timestamp","ask_amount","ask_price","bid_price","bid_amount"]
[1737228549806,0.12841762,104190.0,104170.0,1.43118722]
[1737228550007,0.12841762,104190.0,104180.0,0.19522781]
[1737228551106,0.12841762,104190.0,104180.0,0.52252781]
[1737228551306,0.12851403,104190.0,104180.0,0.52252781]
[1737228554792,0.12851403,104190.0,104180.0,0.54168355]
[1737228556885,0.12851403,104190.0,104180.0,0.62745541]
[1737228558387,9.641e-05,104190.0,104180.0,0.75672263]
[1737228558589,9.641e-05,104190.0,104180.0,1.10672263]
[1737228558805,9.641e-05,104190.0,104180.0,1.23792263]
[1737228559511,9.641e-05,104190.0,104180.0,1.36708052]
[1737228559890,0.00099438,104190.0,104180.0,1.36708052]
[1737228560293,0.12389881,104210.0,104190.0,0.35]
[1737228560501,0.12389881,104210.0,104200.0,0.30147703]
[1737228560701,0.07719881,104210.0,104200.0,0.72877703]
[1737228561271,0.07719881,104210.0,104200.0,0.52250981]
[1737228562309,0.08291881,104210.0,104200.0,0.52250981]
[1737228563894,0.08291881,104210.0,104200.0,0.53207026]
[1737228565058,0.08291881,104210.0,104200.0,0.55143733]
[1737228567087,0.22557881,104210.0,104200.0,0.43282945]
[1737228567283,0.22557881,104210.0,104200.0,0.423269]
[1737228567735,0.0763,104200.0,104190.0,1.00048913]
[1737228568289,0.0763,104200.0,104190.0,0.615213]
[1737228568807,0.218969,104200.0,104190.0,0.615213]
[1737228569428,0.0763,104190.0,104180.0,0.64441257]
[1737228572029,0.0763,104190.0,104180.0,0.63488714]
[1737228574722,0.217878,104190.0,104180.0,0.3277276]
[1737228574924,0.217878,104190.0,104180.0,0.0004276]
[1737228575831,0.217878,104190.0,104180.0,0.0964146]
[1737228576406,0.217878,104190.0,104180.0,0.0914146]
[1737228577483,0.217878,104190.0,104170.0,1.12634381]
[1737228577791,0.08672,104180.0,104170.0,0.86836732]
[1737228578000,0.08672,104180.0,104170.0,1.0400077]
[1737228578329,0.182707,104180.0,104170.0,1.0400077]
[1737228579400,0.182707,104180.0,104170.0,1.0101006]
[1737228579576,0.228307,104180.0,104170.0,1.0101006]
[1737228579790,0.228307,104180.0,104170.0,1.00063754]
[1737228579992,0.13232,104180.0,104170.0,1.00063754]
[1737228582231,0.13232,104180.0,104170.0,0.82899716]
[1737228582847,0.13232,104180.0,104170.0,1.21579865]
[1737228583510,0.13232,104180.0,104170.0,1.00063754]
[1737228583712,0.13232,104180.0,104170.0,1.00106514]
[1737228583895,0.228307,104180.0,104170.0,1.00106514]
[1737228584064,0.13232,104180.0,104170.0,1.13077195]
[1737228585302,0.228307,104180.0,104170.0,0.93879595]
[1737228585502,0.13232,104180.0,104170.0,0.93879595]
[1737228585703,0.13232,104180.0,104170.0,0.8106145]
[1737228585919,0.13232,104180.0,104170.0,0.8165405]
[1737228586265,0.13232,104180.0,104170.0,0.64490012]
[1737228587966,0.13232,104180.0,104170.0,0.90361322]
[1737228588730,0.13232,104180.0,104170.0,0.64490012]
[1737228589654,0.228307,104180.0,104170.0,0.64490012]
[1737228590049,0.13232,104180.0,104170.0,0.64490012]
[1737228590466,0.13232,104180.0,104170.0,0.81712242]
[1737228591055,0.13232,104180.0,104170.0,0.94629344]
[1737228592924,0.13232,104180.0,104170.0,1.03240883]
[1737228593874,0.29924496,104180.0,104170.0,0.93641983]
[1737228594101,0.29924496,104180.0,104170.0,0.39395872]
[1737228594102,0.29804503,104180.0,104170.0,0.39395872]
[1737228594921,0.29804503,104180.0,104170.0,0.00645001]
[1737228595574,0.228307,104180.0,104170.0,0.00645001]
[1737228595977,0.22920517,104180.0,104170.0,0.00645001]
[1737228596183,0.33548859,104180.0,104170.0,0.00645001]
[1737228596588,0.4347294,104180.0,104170.0,0.00645001]
[1737228598993,0.22920517,104180.0,104170.0,0.00645001]
[1737228600526,0.33548859,104180.0,104170.0,0.00645001]
[1737228600771,0.22920517,104180.0,104170.0,0.00645001]
[1737228602721,0.12749817,104180.0,104170.0,0.10244601]
[1737228603233,0.00661817,104180.0,104170.0,0.52898682]
[1737228603773,0.00089817,104180.0,104170.0,0.73527024]
[1737228604013,0.00089817,104180.0,104170.0,0.62898682]
[1737228604296,0.00089817,104180.0,104170.0,0.84427323]
[1737228604943,0.00089817,104180.0,104170.0,0.74427323]
[1737228605155,0.00089817,104180.0,104170.0,0.64503242]
[1737228605297,0.00089817,104180.0,104170.0,1.03241583]
[1737228605917,0.00089817,104180.0,104170.0,0.5158614]
[1737228606118,0.09688517,104180.0,104170.0,0.5158614]
[1737228606316,0.17628517,104180.0,104170.0,0.5158614]
[1737228606763,0.08029817,104180.0,104170.0,0.5158614]
[1737228606962,0.17628517,104180.0,104170.0,0.5158614]
[1737228608108,0.17628517,104180.0,104170.0,0.64503242]
[1737228609762,0.08029817,104180.0,104170.0,0.64503242]
[1737228610099,0.08029817,104180.0,104170.0,0.81725472]
[1737228611414,0.08029817,104180.0,104170.0,0.72125872]
[1737228611612,0.17628517,104180.0,104170.0,0.93641983]
[1737228612015,0.08029817,104180.0,104170.0,0.93641983]
[1737228612221,0.17628517,104180.0,104170.0,0.93641983]
[1737228612677,0.17628517,104180.0,104170.0,0.85030444]
[1737228612902,0.08029817,104180.0,104170.0,0.85030444]
[1737228613216,0.17628517,104180.0,104170.0,0.85030444]
[1737228613627,0.08029817,104180.0,104170.0,0.85030444]
[1737228613829,0.17628517,104180.0,104170.0,0.85030444]
[1737228615295,0.17628517,104180.0,104170.0,0.72139313]
[1737228615768,0.17628517,104180.0,104170.0,0.54917083]
[1737228617388,0.17628517,104180.0,104170.0,0.72139313]
[1737228619975,0.17628517,104180.0,104170.0,0.60925424]
[1737228621185,0.17628517,104180.0,104170.0,0.52300444]
[1737228623620,0.17628517,104180.0,104170.0,0.60931348]
[1737228625564,0.22288517,104180.0,104170.0,0.60931348]
[1737228631548,0.22860517,104180.0,104170.0,0.60931348]
[1737228632605,0.12689817,104180.0,104170.0,0.60931348]
[1737228632804,0.00089817,104180.0,104170.0,1.10319464]
[1737228633232,0.00089817,104180.0,104170.0,1.01768517]
[1737228634075,0.00089817,104180.0,104170.0,1.01230782]
[1737228634763,0.00089817,104180.0,104170.0,1.27117841]
[1737228635331,0.00089817,104180.0,104170.0,1.04878528]
[1737228635535,0.00089817,104180.0,104170.0,0.94256347]
[1737228636014,0.00089817,104180.0,104170.0,0.84256347]
[1737228636554,0.07939817,104180.0,104170.0,0.73369288]
[1737228636956,0.07939817,104180.0,104170.0,0.61049829]
[1737228637781,0.07939817,104180.0,104170.0,0.93779829]
[1737228637956,0.00089817,104180.0,104170.0,0.93779829]
[1737228638158,0.00089817,104180.0,104170.0,1.06776594]
[1737228638790,0.00089817,104180.0,104170.0,1.03779829]
[1737228639122,0.00089817,104180.0,104170.0,1.25288377]
[1737228640527,0.00089817,104180.0,104170.0,1.37607836]
[1737228641811,0.00089817,104180.0,104170.0,1.73475976]
[1737228642415,0.00089817,104180.0,104170.0,1.47607836]
[1737228644990,0.00089817,104180.0,104170.0,2.09507836]
[1737228645397,0.00089817,104180.0,104170.0,1.7130723]
[1737228648084,0.00089797,104190.0,104180.0,1.0651301]
[1737228649021,0.00089797,104190.0,104180.0,2.0402301]
[1737228649229,0.00089797,104190.0,104180.0,2.0884301]
[1737228652566,0.00089797,104190.0,104180.0,2.10773302]
[1737228654410,0.00089797,104190.0,104180.0,2.00151121]
[1737228654971,0.00089797,104190.0,104180.0,2.01123051]
[1737228655491,0.00089797,104190.0,104180.0,2.01165851]
[1737228655693,0.00089797,104190.0,104180.0,1.86489891]
[1737228656636,0.00089797,104190.0,104180.0,1.83493524]
[1737228657567,0.00089797,104190.0,104180.0,1.70783524]
[1737228659122,0.00089797,104190.0,104180.0,1.50783524]
[1737228659320,0.12519797,104190.0,104180.0,1.50783524]
[1737228659781,0.12519797,104190.0,104180.0,1.63678557]
[1737228660347,0.12519797,104190.0,104180.0,1.76579008]
[1737228662223,0.12519797,104190.0,104180.0,1.61579008]
[1737228662867,0.12519797,104190.0,104180.0,1.48679488]
[1737228663048,0.00089797,104190.0,104180.0,1.69301669]
[1737228663507,0.00089797,104190.0,104180.0,1.41479153]
[1737228663706,0.00089797,104190.0,104180.0,1.62101334]
[1737228664122,0.00089797,104190.0,104180.0,2.02450738]
[1737228664330,0.00089797,104190.0,104180.0,2.05440022]
[1737228665012,0.00089797,104190.0,104180.0,1.92544989]
[1737228666804,0.00089881,104210.0,104200.0,0.445969]
[1737228667005,0.00089881,104210.0,104200.0,0.65143162]
[1737228667210,0.00089881,104210.0,104200.0,1.55644488]
[1737228667859,0.00089881,104210.0,104200.0,1.81450209]
[1737228668484,0.00089881,104210.0,104200.0,1.70828028]
[1737228668681,0.00089881,104210.0,104200.0,1.32836702]
[1737228668857,0.07719881,104210.0,104200.0,1.32836702]
[1737228669316,0.07719881,104210.0,104200.0,1.45710117]
[1737228670086,0.07719881,104210.0,104200.0,1.28522931]
[1737228670544,0.07719881,104210.0,104200.0,1.30469148]
[1737228670754,0.07719881,104210.0,104200.0,0.75689148]
[1737228671273,0.07719881,104210.0,104200.0,0.76630135]
[1737228671889,0.12419881,104210.0,104200.0,0.76630135]
[1737228673063,0.00089881,104210.0,104200.0,1.14368284]
[1737228673292,0.08119881,104210.0,104200.0,1.14368284]
[1737228673475,0.12819881,104210.0,104200.0,1.14368284]
[1737228673616,0.12819881,104210.0,104200.0,0.92879875]
[1737228674653,0.00089881,104210.0,104200.0,1.13502056]
[1737228674832,0.00089881,104210.0,104200.0,1.34990465]
[1737228675213,0.00089881,104210.0,104200.0,1.24368284]
[1737228675615,0.00089881,104210.0,104200.0,1.02876334]
[1737228676223,0.00089881,104210.0,104200.0,1.05869065]
[1737228676403,0.00089881,104210.0,104200.0,0.88678338]
[1737228677038,0.00089881,104210.0,104200.0,1.14484059]
[1737228677624,0.00089881,104210.0,104200.0,0.9299565]
[1737228678408,0.08119881,104210.0,104200.0,0.80002919]
[1737228679039,0.08119881,104210.0,104200.0,0.92947747]
[1737228681560,0.12819881,104210.0,104200.0,0.92947747]
[1737228683092,0.12819881,104210.0,104200.0,0.75725281]
[1737228683718,0.12819881,104210.0,104200.0,0.63854983]
[1737228683922,0.22415881,104210.0,104200.0,0.63854983]
[1737228684060,0.12819881,104210.0,104200.0,0.63854983]
[1737228684251,0.12819881,104210.0,104200.0,0.810892]
[1737228684857,0.22415881,104210.0,104200.0,0.63854983]
[1737228685064,0.33038062,104210.0,104200.0,0.21528083]
[1737228685309,0.22415881,104210.0,104200.0,0.21528083]
[1737228686307,0.22415881,104210.0,104200.0,0.69919021]
[1737228686663,0.22415881,104210.0,104200.0,0.60322121]
[1737228688079,0.22415881,104210.0,104200.0,0.69919021]
[1737228688647,0.22415881,104210.0,104200.0,0.60322121]
[1737228690712,0.22415881,104210.0,104200.0,0.69919021]
[1737228691369,0.22415881,104210.0,104200.0,0.60322121]
[1737228691572,0.22415881,104210.0,104200.0,0.69919021]
[1737228692620,0.22415881,104210.0,104200.0,0.60322121]
[1737228693597,0.22415881,104210.0,104200.0,0.69919021]
[1737228693801,0.22415881,104210.0,104200.0,0.60322121]
[1737228694108,0.22415881,104210.0,104200.0,0.69919021]
[1737228694489,0.33038062,104210.0,104200.0,0.60322121]
[1737228695342,0.33038062,104210.0,104200.0,0.21552243]
[1737228695883,0.35338062,104210.0,104200.0,0.21552243]
[1737228696806,0.25742062,104210.0,104190.0,0.71613897]
[1737228697011,0.222969,104200.0,104190.0,0.71613897]
[1737228697208,0.32919081,104200.0,104190.0,0.71613897]
[1737228697815,0.32919081,104200.0,104190.0,0.54372102]
[1737228698656,0.32919081,104200.0,104190.0,0.71613897]
[1737228698861,0.127,104200.0,104190.0,0.81211697]
[1737228699471,0.222969,104200.0,104190.0,0.71613897]
[1737228699832,0.222969,104200.0,104190.0,0.81211697]
[1737228700136,0.222969,104200.0,104190.0,0.71613897]
[1737228700670,0.222969,104200.0,104190.0,0.21642102]
[1737228700834,0.32919081,104200.0,104190.0,0.21642102]
[1737228701252,0.222969,104200.0,104190.0,0.21642102]
[1737228701462,0.32919081,104200.0,104190.0,0.21642102]
[1737228703170,0.32919081,104200.0,104190.0,0.08710756]
[1737228705783,0.32919081,104200.0,104190.0,0.00089859]
[1737228705985,0.45143162,104200.0,104190.0,0.00089859]
[1737228706637,0.35219081,104200.0,104190.0,0.00089859]
[1737228707325,0.60143162,104200.0,104190.0,0.00089859]
[1737228714523,0.60185952,104200.0,104190.0,0.00089859]
[1737228727776,0.3963969,104200.0,104190.0,0.00089859]
[1737228727981,0.3733969,104200.0,104190.0,0.00089859]
[1737228728204,0.1036769,104200.0,104190.0,0.00089859]
[1737228728334,0.2536769,104200.0,104190.0,0.00089859]
[1737228728546,0.1036769,104200.0,104190.0,0.00089859]
[1737228729298,0.1036769,104200.0,104190.0,0.09687659]
[1737228729299,0.0077079,104200.0,104190.0,0.09687659]
[1737228729493,0.0019079,104200.0,104190.0,0.17897659]
[1737228729699,0.0019079,104200.0,104190.0,0.2782174]
[1737228729902,0.0077079,104200.0,104190.0,0.2782174]
[1737228730557,0.0077079,104200.0,104190.0,0.49373983]
[1737228730687,0.0077079,104200.0,104190.0,0.82193983]
[1737228731087,0.0077079,104200.0,104190.0,0.99435778]
[1737228731950,0.0077079,104200.0,104190.0,1.12342964]
[1737228733406,0.0077079,104200.0,104190.0,1.1331966]
[1737228734402,0.0019079,104200.0,104190.0,1.1331966]
[1737228734720,0.0019079,104200.0,104190.0,1.00388314]
[1737228735543,0.0019079,104200.0,104190.0,1.12311484]
[1737228735911,0.0019079,104200.0,104190.0,0.95069689]
[1737228736553,0.0019079,104200.0,104190.0,1.2087541]
[1737228737162,0.0019079,104200.0,104190.0,1.12289045]
[1737228741563,0.0019079,104200.0,104190.0,1.2087541]
[1737228741909,0.0019079,104200.0,104190.0,0.95069689]
[1737228742110,0.0019079,104200.0,104190.0,2.00914051]
[1737228742532,0.0019079,104200.0,104190.0,2.03899523]
[1737228742903,0.0019079,104200.0,104190.0,2.08177161]
[1737228743328,0.00089881,104210.0,104200.0,0.43389081]
[1737228743532,0.00089881,104210.0,104200.0,0.53313162]
[1737228744139,0.00089881,104210.0,104200.0,0.79116865]
[1737228744667,0.00089881,104210.0,104200.0,0.68494684]
[1737228744920,0.00089881,104210.0,104200.0,0.89992477]
[1737228745699,0.00089881,104210.0,104200.0,1.51818774]
[1737228746583,0.00089881,104210.0,104200.0,1.28648774]
[1737228746994,0.00089881,104210.0,104200.0,1.58735751]
[1737228747516,0.00089881,104210.0,104200.0,1.45834272]
[1737228748338,0.00089881,104210.0,104200.0,1.28641714]
[1737228749533,0.09685881,104210.0,104200.0,1.18717633]
[1737228749848,0.22715881,104210.0,104200.0,1.05823214]
[1737228750544,0.22715881,104210.0,104200.0,0.972269]
[1737228751620,0.22715881,104210.0,104200.0,0.424169]
[1737228754299,0.13119881,104210.0,104200.0,0.424169]
[1737228758346,0.00089881,104210.0,104200.0,0.52340981]
[1737228758546,0.00669881,104210.0,104200.0,0.52340981]
[1737228759300,0.00669881,104210.0,104200.0,0.60937295]
[1737228760255,0.00089881,104210.0,104200.0,0.81559476]
[1737228760400,0.00089881,104210.0,104200.0,0.70937295]
[1737228760916,0.00089881,104210.0,104200.0,0.71027154]
[1737228761122,0.00089881,104210.0,104200.0,0.83921573]
[1737228761979,0.00089881,104210.0,104200.0,1.01114131]
[1737228763722,0.00089881,104210.0,104200.0,1.55924131]
[1737228764935,0.00089881,104210.0,104200.0,1.58919546]
[1737228765133,0.00089881,104210.0,104200.0,1.55924131]
[1737228765744,0.00089881,104210.0,104200.0,1.77421924]
[1737228768208,0.00089881,104210.0,104200.0,1.6882561]
[1737228770163,0.00089881,104210.0,104200.0,1.55931191]
[1737228772356,0.00089881,104210.0,104200.0,1.38738633]
[1737228773732,0.00089881,104210.0,104200.0,1.43044543]
[1737228776217,0.00089881,104210.0,104200.0,1.33044543]
[1737228776420,0.09685881,104210.0,104200.0,1.33044543]
[1737228776630,0.22365881,104210.0,104200.0,1.33044543]
[1737228777225,0.22365881,104210.0,104200.0,1.54619515]
[1737228777464,0.22365881,104210.0,104200.0,1.45022615]
[1737228778682,0.22365881,104210.0,104200.0,0.90212615]
[1737228778887,0.00089881,104210.0,104200.0,1.2042936]
[1737228779330,0.00089881,104210.0,104200.0,1.31336169]
[1737228780025,0.00089881,104210.0,104200.0,0.83957494]
[1737228782415,0.00089881,104210.0,104200.0,0.98957494]
[1737228783002,0.00089881,104210.0,104200.0,1.08957494]
[1737228783424,0.00089881,104210.0,104200.0,1.63767494]
[1737228784035,0.00089881,104210.0,104200.0,1.92925503]
[1737228784234,0.1330278,104230.0,104220.0,0.09595]
[1737228784455,0.1330278,104230.0,104220.0,0.2251589]
[1737228785320,0.1330278,104230.0,104220.0,0.48398249]
[1737228785565,0.1331243,104230.0,104220.0,0.48398249]
[1737228786349,0.1331243,104230.0,104220.0,0.4540144]
[1737228786548,0.1331243,104230.0,104220.0,0.4839821]
[1737228786741,0.1331243,104230.0,104220.0,0.4540144]
[1737228786969,0.1331243,104230.0,104220.0,0.48398212]
[1737228787587,0.1331243,104230.0,104220.0,0.81218212]
[1737228788004,0.1331243,104230.0,104220.0,0.7822144]
[1737228788359,0.1331243,104230.0,104220.0,0.81218361]
[1737228789837,0.0860843,104230.0,104220.0,0.91838206]
[1737228790457,0.0860843,104230.0,104220.0,0.9374293]
[1737228790831,0.0860843,104230.0,104220.0,1.31959851]
[1737228790991,0.0860843,104230.0,104220.0,1.21340006]
[1737228791697,0.0860843,104230.0,104220.0,0.92460726]
[1737228792197,0.2302253,104230.0,104220.0,0.42415]
[1737228792594,0.1342843,104230.0,104220.0,0.42415]
[1737228792995,0.1342843,104230.0,104220.0,0.89834414]
[1737228793403,0.1342843,104230.0,104220.0,0.63969279]
[1737228794024,0.2302253,104230.0,104220.0,0.63969279]
[1737228794412,0.1342843,104230.0,104220.0,0.63969279]
[1737228794762,0.2302253,104230.0,104220.0,0.81210332]
[1737228794947,0.1342843,104230.0,104220.0,0.81210332]
[1737228795408,0.1342843,104230.0,104220.0,0.94139942]
[1737228797617,0.1285243,104230.0,104220.0,0.94139942]
[1737228797769,0.1342843,104230.0,104220.0,0.94139942]
[1737228799326,0.1342843,104230.0,104220.0,0.81210332]
[1737228800816,0.1342843,104230.0,104220.0,0.94138918]
[1737228803140,0.1342843,104230.0,104220.0,0.84543918]
[1737228803346,0.23142457,104230.0,104220.0,0.84543918]
[1737228803548,0.23142457,104230.0,104220.0,0.94138918]
[1737228803549,0.2302253,104230.0,104220.0,0.94138918]
[1737228803834,0.2302253,104230.0,104220.0,0.84543918]
[1737228804059,0.2302253,104230.0,104220.0,0.81205413]
[1737228804412,0.2302253,104230.0,104220.0,0.71610413]
[1737228805313,0.2302253,104230.0,104220.0,0.81205413]
[1737228805557,0.2302253,104230.0,104220.0,0.48385413]
[1737228808247,0.2302253,104230.0,104220.0,0.38790413]
[1737228808516,0.2302253,104230.0,104220.0,0.48385413]
[1737228810025,0.2302253,104230.0,104220.0,0.69939692]
[1737228814968,0.2302253,104230.0,104220.0,0.60344692]
[1737228815576,0.2302253,104230.0,104220.0,0.69939692]
[1737228819406,0.2302253,104230.0,104220.0,0.60344692]
[1737228820450,0.2302253,104230.0,104220.0,0.51723918]
[1737228821142,0.2302253,104230.0,104220.0,0.61318918]
[1737228821788,0.2302253,104230.0,104220.0,0.51723918]
[1737228823201,0.29989971,104230.0,104220.0,0.51723918]
[1737228824226,0.44989971,104230.0,104220.0,0.51723918]
[1737228824404,0.61881493,104230.0,104220.0,0.51723918]
[1737228824603,0.84181493,104230.0,104220.0,0.51723918]
[1737228825208,0.15,104220.0,104210.0,0.08724837]
[1737228825407,0.61593923,104220.0,104210.0,0.08724837]
[1737228825758,0.61473963,104220.0,104210.0,0.08724837]
[1737228826191,0.61473963,104220.0,104210.0,0.0008988]
[1737228827459,0.58162388,104220.0,104210.0,0.0008988]
[1737228828415,0.68785695,104220.0,104210.0,0.0008988]
[1737228828632,0.69727845,104220.0,104210.0,0.0008988]
[1737228829445,0.82027845,104220.0,104210.0,0.0008988]
[1737228831792,0.92027845,104220.0,104210.0,0.0008988]
[1737228841635,0.92599845,104220.0,104210.0,0.0008988]
[1737228842454,0.71404538,104220.0,104210.0,0.0008988]
[1737228842672,0.59676538,104220.0,104210.0,0.0008988]
[1737228843445,0.69676538,104220.0,104210.0,0.0008988]
[1737228844339,0.37615,104220.0,104210.0,0.0008988]
[1737228844547,0.38187,104220.0,104210.0,0.0008988]
[1737228844752,0.33810307,104220.0,104210.0,0.0008988]
[1737228845157,0.48810307,104220.0,104210.0,0.0008988]
[1737228848810,0.2883683,104230.0,104210.0,0.3174508]
[1737228849006,0.00572,104220.0,104210.0,0.3174508]
[1737228849239,0.00572,104220.0,104210.0,0.3987508]
[1737228851199,0.00572,104220.0,104210.0,0.49799161]
[1737228852625,0.00572,104220.0,104210.0,0.5051645]
[1737228853016,0.00572,104220.0,104210.0,0.52389646]
[1737228853411,0.00572,104220.0,104210.0,0.85209646]
[1737228854880,0.006148,104220.0,104210.0,0.85209646]
[1737228856699,0.006148,104220.0,104210.0,0.93810169]
[1737228859607,0.006148,104220.0,104210.0,0.85209646]
[1737228861818,0.102098,104220.0,104210.0,0.67155565]
[1737228862150,0.006148,104220.0,104210.0,0.67155565]
[1737228862330,0.006148,104220.0,104210.0,0.75756088]
[1737228862695,0.006148,104220.0,104210.0,0.75038799]
[1737228862895,0.102098,104220.0,104210.0,0.53974803]
[1737228863503,0.102098,104220.0,104210.0,0.44378803]
[1737228863707,0.102098,104220.0,104210.0,0.4537428]
[1737228864157,0.102098,104220.0,104210.0,0.3577828]
[1737228864633,0.000428,104220.0,104210.0,0.5810428]
[1737228864834,0.000428,104220.0,104210.0,0.68028361]
[1737228865442,0.006148,104220.0,104210.0,0.68028361]
[1737228865838,0.006148,104220.0,104210.0,0.76628884]
[1737228866337,0.000428,104220.0,104210.0,0.76628884]
[1737228866728,0.000428,104220.0,104210.0,0.89529668]
[1737228866931,0.000428,104220.0,104210.0,0.90246973]
[1737228870326,0.000428,104220.0,104210.0,1.07448019]
[1737228871428,0.000428,104220.0,104210.0,1.02468019]
[1737228872605,0.000428,104220.0,104210.0,0.94718019]
[1737228873616,0.000428,104220.0,104210.0,0.84793938]
[1737228875285,0.125428,104220.0,104210.0,0.54692108]
[1737228877078,0.125428,104220.0,104210.0,0.46091585]
[1737228878699,0.125428,104220.0,104210.0,0.54692108]
[1737228880219,0.125428,104220.0,104210.0,0.67592892]
[1737228883619,0.1266274,104220.0,104210.0,0.67592892]
[1737228883821,0.2225774,104220.0,104210.0,0.67592892]
[1737228884027,0.32761107,104220.0,104210.0,0.57996892]
[1737228884234,0.221378,104220.0,104210.0,0.75197938]
[1737228884424,0.221378,104220.0,104210.0,0.84793938]
[1737228884844,0.221378,104220.0,104210.0,0.75197938]
[1737228884973,0.125428,104220.0,104210.0,0.67592892]
[1737228885388,0.221378,104220.0,104210.0,0.67592892]
[1737228886015,0.221378,104220.0,104210.0,0.57996892]
[1737228886414,0.221378,104220.0,104210.0,0.25176892]
[1737228886711,0.221378,104220.0,104210.0,0.34772892]
[1737228886909,0.221378,104220.0,104210.0,0.25176892]
[1737228887132,0.221378,104220.0,104210.0,0.34772892]
[1737228887451,0.221378,104220.0,104210.0,0.25176892]
[1737228887671,0.221378,104220.0,104210.0,0.34772892]
[1737228889406,0.221378,104220.0,104210.0,0.42377938]
[1737228889680,0.221378,104220.0,104210.0,0.51973938]
[1737228890143,0.125428,104220.0,104210.0,0.51973938]
[1737228890896,0.125428,104220.0,104210.0,0.63879245]
[1737228891134,0.22257746,104220.0,104210.0,0.63879245]
[1737228891357,0.47761107,104220.0,104210.0,0.63879245]
[1737228892129,0.57685188,104220.0,104210.0,0.12276108]
[1737228892364,0.57685188,104220.0,104210.0,0.11558803]
[1737228892588,0.57685188,104220.0,104210.0,0.0295828]
[1737228898852,0.57685188,104220.0,104210.0,0.0008988]
[1737228901407,0.54032146,104220.0,104210.0,0.0008988]
[1737228901681,0.44108065,104220.0,104210.0,0.0008988]
[1737228903433,0.371378,104220.0,104210.0,0.0008988]
[1737228905415,0.4775853,104220.0,104210.0,0.0008988]
[1737228906261,0.57682611,104220.0,104210.0,0.0008988]
[1737228910326,0.47061881,104220.0,104210.0,0.0008988]
[1737228913075,0.09596,104210.0,104200.0,0.02544613]
[1737228915284,0.17926,104210.0,104200.0,0.02544613]
[1737228916483,0.43666692,104210.0,104200.0,0.02544613]
[1737228916784,0.4354673,104210.0,104200.0,0.02544613]
[1737228916984,0.32926,104210.0,104200.0,0.02544613]
[1737228917166,0.32926,104210.0,104200.0,0.12141513]
[1737228917323,0.32926,104210.0,104200.0,0.02544613]
[1737228918455,0.32926,104210.0,104200.0,0.12141513]
[1737228918665,0.33498,104210.0,104200.0,0.12141513]
[1737228919348,0.33498,104210.0,104200.0,0.02544613]
[1737228919951,0.32926,104210.0,104200.0,0.02544613]
[1737228920092,0.33498,104210.0,104200.0,0.02544613]
[1737228921319,0.35149823,104210.0,104200.0,0.11145136]
[1737228922142,0.35149823,104210.0,104200.0,0.02544613]
[1737228922820,0.33498,104210.0,104200.0,0.11145136]
[1737228924294,0.4046857,104210.0,104200.0,0.11145136]
[1737228924916,0.4046857,104210.0,104200.0,0.02544613]
[1737228926180,0.33498,104210.0,104200.0,0.02587413]
[1737228926311,0.33587881,104210.0,104200.0,0.02587413]
[1737228927106,0.25257881,104210.0,104200.0,0.02587413]
[1737228927314,0.24685881,104210.0,104200.0,0.12184313]
[1737228927602,0.25257881,104210.0,104200.0,0.12184313]
[1737228927803,0.25257881,104210.0,104200.0,0.20784836]
[1737228928320,0.25257881,104210.0,104200.0,0.72387973]
[1737228928838,0.25257881,104210.0,104200.0,0.67711753]
[1737228929712,0.25257881,104210.0,104200.0,0.46210446]
[1737228929972,0.25257881,104210.0,104200.0,0.38702353]
[1737228930419,0.10257881,104210.0,104200.0,0.48299253]
[1737228931894,0.10257881,104210.0,104200.0,0.49312536]
[1737228931895,0.09685881,104210.0,104200.0,0.49312536]
[1737228932095,0.10257881,104210.0,104200.0,0.49312536]
[1737228932451,0.10257881,104210.0,104200.0,0.6221332]
[1737228933688,0.10257881,104210.0,104200.0,0.70846846]
[1737228934083,0.00089881,104210.0,104200.0,0.70846846]
[1737228934247,0.00661881,104210.0,104200.0,0.95481497]
[1737228934447,0.00661881,104210.0,104200.0,0.90810927]
[1737228935499,0.00661881,104210.0,104200.0,0.81713509]
[1737228935705,0.00661881,104210.0,104200.0,0.42978153]
[1737228936157,0.10257881,104210.0,104200.0,0.42978153]
[1737228936329,0.25398403,104210.0,104200.0,0.3211149]
[1737228936601,0.25278451,104210.0,104200.0,0.3211149]
[1737228936813,0.10257881,104210.0,104200.0,0.3211149]
[1737228937020,0.10257881,104210.0,104200.0,0.49381353]
[1737228937411,0.00661881,104210.0,104200.0,0.49381353]
[1737228938293,0.00661881,104210.0,104200.0,0.3215429]
[1737228939143,0.00661881,104210.0,104200.0,0.44378371]
[1737228940162,0.00661881,104210.0,104200.0,0.7017994]
[1737228940337,0.00661881,104210.0,104200.0,1.0299994]
[1737228940679,0.00661881,104210.0,104200.0,0.77198371]
[1737228942207,0.00661881,104210.0,104200.0,0.81498633]
[1737228942916,0.00661881,104210.0,104200.0,0.83376894]
[1737228945102,0.00661881,104210.0,104200.0,1.04956046]
[1737228947868,0.17897881,104210.0,104200.0,0.92731965]
[1737228948371,0.17897881,104210.0,104200.0,0.84192595]
[1737228948747,0.22827881,104210.0,104200.0,0.39897434]
[1737228948988,0.56492218,104210.0,104200.0,0.39897434]
[1737228949192,0.4844786,104210.0,104200.0,0.39897434]
[1737228949929,0.37827881,104210.0,104200.0,0.09688233]
[1737228950134,0.4844786,104210.0,104200.0,0.09688233]
[1737228950665,0.4844786,104210.0,104200.0,0.01056083]
[1737228952393,0.68371941,104210.0,104200.0,0.01056083]
[1737228952584,0.78296022,104210.0,104200.0,0.01056083]
[1737228952792,0.89278285,104210.0,104200.0,0.01056083]
[1737228953003,0.79278285,104210.0,104200.0,0.01056083]
[1737228953180,0.69278285,104210.0,104200.0,0.01056083]
[1737228953421,0.79898264,104210.0,104200.0,0.01056083]
[1737228953629,0.79898264,104210.0,104190.0,0.08722009]
[1737228953630,0.2988,104200.0,104190.0,0.08722009]
[1737228953836,0.87824235,104200.0,104190.0,0.08722009]
[1737228954047,0.77824235,104200.0,104190.0,0.08722009]
[1737228954224,0.81033042,104200.0,104190.0,0.08722009]
[1737228954426,0.81033042,104200.0,104190.0,5.9e-07]
[1737228954631,0.15,104190.0,104180.0,0.000428]
[1737228954858,0.70104295,104190.0,104170.0,0.0063536]
[1737228955068,0.69444755,104180.0,104170.0,0.0063536]
[1737228955285,0.69324739,104180.0,104170.0,0.0063536]
[1737228955491,0.72533546,104180.0,104170.0,0.0063536]
[1737228955873,0.72533546,104180.0,104170.0,0.00645001]
[1737228956221,0.7924882,104180.0,104170.0,0.00645001]
[1737228956418,0.096033,104130.0,104120.0,0.71705365]
[1737228956672,0.20795279,104130.0,104120.0,0.71705365]
[1737228957086,0.20795279,104130.0,104120.0,0.3286279]
[1737228957285,0.20795279,104130.0,104120.0,0.0004279]
[1737228957870,0.20795279,104130.0,104120.0,0.00047788]
[1737228958024,0.20915331,104130.0,104120.0,0.00047788]
[1737228958992,0.20795279,104130.0,104120.0,0.00047788]
[1737228959178,0.33905334,104130.0,104120.0,0.00047788]
[1737228959340,0.33785279,104130.0,104120.0,0.00047788]